Workbook

Sheet HOME
B1: ENERGY EFFICIENCY TOOLS FOR COMPRESSED AIR SYSTEMS
B2: VER_01/150826
B3: INTRODUCTION: This workbook consists of multiple tools that conduct Assessment of Compressed Air System, calculate Energy Performance of Compressors, and calculate Energy Saving Potentials in Compressed Air System
B6: HOW TO USE:
B7: 1. Insert data from your company in cells that are highlighted in white. 2. Results of calculations will be displayed in Orange Cells. 3. Examples of Data and Calculation are shown in each tool.
B8: SOURCES:
B9: 1. Compressed Air Best Practice Tool; Sustainable Energy Authority of Ireland (seai) 2. Recuperable heat from compressors, Energy Agency NRW 3. Compressed Air Systems in the European Union, EU 2001 4. International Energy Agency (IEA) 5. Energy Markets International Limited 6. ISO 11011 Compressed air – Energy Efficiency – Assessment 7. Energy Efficiency Guide for Industry in Asia – www.energyefficiencyasia.org 8. US Department of Energy – www.eere.energy.gov/industry 9. Air compressor Works Inc. [http://www.aircompressorworks.com/airflowthroughorifices.html] 10. EU Study compresse air system
B10: WHO WE ARE:
B11: ESPIRE is a partnership project between the Training and Development Centers of the Bavarian Employers‘ Association (bfz) gGmbH and business associations in Lahore and Karachi in Pakistan. The objective of ESPIRE project is to support industries in Pakistan to work economically more efficiently and ecologically more sustainable and start making energy conservation and cleaner production part of their work routine. Main project partners are; Pakistan Association of Automotive Parts and Accessories Manufacturers (PAAPAM), Pakistan Hosiery Manufacturers Association (PHMA), Pakistan Readymade Garments Manufacturers and Exporters Association (PRGMEA), Small and Medium Enterprises Development Authority (SMEDA), Towel Manufacturers Association of Pakistan (TMA). The Project is funded by the German Federal Ministry for Economic Cooperation and Development (BMZ) via Sequa gGmbH.
B12: DISCLAIMER:
B13: The information, calculations and conclusions in this tool are based on the projects executed by the experts and consultant under Project ESPIRE by bfz gGmbH – International Division. Some sources (as mentioned above) were also consulted to validate the contents. The efficiency improvement measures proposed in this tool are tested and tried in many companies in Pakistan. However, implementation of these measures in any particular case should be based on real time data analysis by qualified engineers after judging financial viability. Bfz gGmbH – International Division and it's Project Partners in Pakistan accepts no liability whatsoever to any person, company or entity for any injury, loss or damage that may arise in connection with any misuse or reliance on the information. The tool is provided as a freeware. Users may make copies and distribute the tool without making any changes.
B14: CONTACT:
B15: Users may contact following for any clarification, suggestion and/or improvement in this tool;
B16: Muhammad Salman Butt Project Manager, Project ESPIRE bfz gGmbH International Division 0092 300 4322343 msalmanbutt@hotmail.com | D16: Muhammad Farooq CEO Energy Saving Solutions, Lahore 0092 321 2117115 farooq.ess@gmail.com

Sheet 1| Checklist Compressed Air
B2: CHECKLIST FOR COMPRESSED AIR SYSTEM
B3: ISSUE: Companies find it difficult to draw a baseline of performance of Compressed Air System. WHAT WE DO HERE: Conduct Self-assessment of compressed air system by rating the performance against each energy saving option in "RATING" column.
C4: ENERGY SAVING OPTIONS
B5: LEVEL | C5: PRODUCTION | D5: RATING
B6: - | C6: Ensure compressors are only switched on if there is a demand for compressed air. | D6: »
B7: - | C7: Match system’s air pressures with the lowest pressure practical for the application. | D7: »
B8: - | C8: Provide cool inlet air (ventilation and compressed) to the compressors [4 degree Celsius rise in inlet air temperature increases the energy consumption by 1%]. | D8: »
B9: - | C9: Optimize the pressure stages of compressors considering the base load and peak load requirements. | D9: »
B10: - | C10: Ensure proper operation of dryers and filters. | D10: »
B11: - | C11: Ensure proper operation of low-flow blow down nozzles on compressed air systems. | D11: »
B12: - - | C12: Investigate the use of a VSD/VFD based compressor. | D12: »
B13: - - | C13: Design the header size to maintain air velocity below 6 m/sec and a maximum pressure drop of 2 psi in the compressor room. | D13: »
B14: - - | C14: Check potential sequencing of compressors to operate most efficient compressors for total system air requirement. | D14: »
B15: - - - | C15: Install a High Efficiency Motor on the compressor. | D15: »
B16: - - - | C16: Recover waste heat from compressors to use for other heating operations. | D16: »
B17: - - - | C17: Replace reciprocating compressors with high efficiency centrifugal compressors. | D17: »
C18: NETWORK | D18: RATING
B19: - | C19: Avoid unnecessary bends and valves. | D19: »
B20: - | C20: Keep the piping network rust-free by regularly maintaining moisture filters and condensate traps. | D20: »
B21: - | C21: Install all branch pipes up-wards to avoid Moisture Accumulation. | D21: »
B22: - | C22: Use leak-loss free condensate traps. | D22: »
B23: - - | C23: Use closed loop piping network [reduces pressure Drop by 75%]. | D23: »
B24: - - | C24: Install pipe sizes appropriate to the flow and pressure requirements [Increasing pipe diameter from 1 ½” to 2” reduces Pressure Drop by 75%]. | D24: »
B25: - - | C25: Divide network in areas/sections to facilitate measurement, maintenance and shut off when not in use. | D25: »
B26: - - | C26: Optimize air storage (location near equipment with high variation, size big enough to avoid regular frequent on/off). | D26: »
B27: - - | C27: Design the piping to maintain air velocity below 9 m/sec and a maximum pressure drop of 3 psi to the farthest point of use. | D27: »
B28: - - | C28: Install local compressor for High Pressure Demand equipment as a pressure booster [System pressure can thus be reduced to match base pressure requirements]. | D28: »
B29: - - - | C29: Reduce the length of the network to avoid pressure drops at far points. | D29: »
B30: - - - | C30: Install all compressed air pipes with a fall of 1% [1:100] in direction of air flow. | D30: »
C31: USE | D31: RATING
B32: - | C32: Eliminate wasteful practices, leaks, artificial demand and inappropriate use [e.g. for cleaning the floor]. | D32: »
B33: - | C33: Install pressure regulators at low-pressure requirement points. | D33: »
B34: - | C34: Verify pressure requirements of end-use applications from their operations manuals. | D34: »
B35: - - | C35: Segregate low & high pressure air requirements. | D35: »
B36: - - | C36: Use blower air instead of compressed air (aeration in effluent treatment plants, drying applications, etc) [Saving potential is about 30%; blowers are available for pressures up to 1 bar in single stage and up to 2.2 bar in two stage design]. | D36: »
B37: - - | C37: Replace Pneumatic tools with hydraulic tools [Energy saving potential is about 30%]. | D37: »
B38: - - | C38: Replace pneumatic tools with electrical tools [Energy saving potential is about 50%]. | D38: »
B39: - - | C39: Replace pneumatic conveying by mechanical conveying [Energy Saving potential is about 30%] | D39: »
C40: CONTROL | D40: RATING
B41: - - | C41: Install measurement equipment (flow meters, air meters, current meters, pressure gauges). | D41: »
B42: - - | C42: Assess performance of critical air demands and existing poor-performing end-use applications. | D42: »
B43: - - | C43: Create and maintain an energy balance between supply and demand. | D43: »
B44: - - | C44: Evaluate the system pressure profile and identify opportunities to eliminate pressure loss. | D44: »
B45: - - | C45: Monitor and Calculate specific energy consumption (e.g. 7 kWh/m³/min by a loading factor of 80%). | D45: »
C46: MAINTENANCE | D46: RATING
B47: - | C47: Regularly inspect and clean air inlet filters. | D47: »
B48: - | C48: Regularly check the joints, valves, filters and connectors for leakages and eliminate all leakages immediately. | D48: »
B50: NOTE:
B51: This tool includes calculation of savings for measures highlighted in blue font.
B53: LEVEL OF DIFFICULTY:
B54: - | C54: No/Low Cost or Short Term Investment [Pay-back period < 6 months]
B55: - - | C55: Medium Term Investment [Pay-back period < 18 months]
B56: - - - | C56: Long Term Investment or Needs Feasibility Study [Pay-back period > 18 months]
B58: RATING OF IMPLEMENTATION STATUS:
C59: Energy Saving Option has not been considered yet. | D59: 1
C60: Energy Saving Option is in the planning stage but not yet realized. | D60: 2
C61: Energy Saving Option is partially (not in all areas/ machines or not all the time) implemented/ realized. | D61: 3
C62: Energy Saving Option has been mostly implemented/ realized. | D62: 4
C63: Energy Saving Option is fully realized. | D63: 5
D64: »

Sheet 2| Equipment data
B2: EQUIPMENT DATA
B3: EQUIPMENT (Motor, Fan, Dryer) | C3: ID # EQUIPMENT | D3: MOTOR POWER [kW] | E3: MOTOR EFFICIENCY [%] | F3: MP*ME | G3: MOTOR LOAD [%] | H3: MP*ML | I3: OPERATION HOURS [h/y]
B4: Name of Equipment | C4: give unique ID | D4: Motor Rating | E4: Given in data sheet, measured or estimated | G4: Measured or estimated | I4: Measured or estimated based on company operation hours
B5: Example: Compressor 1 | C5: C100 | D5: 200 | E5: 0.92 | G5: 0.65 | I5: 6240
F9: =D9*E9 -> 0 | H9: =D9*G9 -> 0
F10: 0 | H10: 0
F11: 0 | H11: 0
F12: 0 | H12: 0
F13: 0 | H13: 0
F14: 0 | H14: 0
F15: 0 | H15: 0
F16: 0 | H16: 0
F17: 0 | H17: 0
F18: 0 | H18: 0
F19: 0 | H19: 0
F20: 0 | H20: 0
F21: =D21*E21 -> 0 | H21: =D21*G21 -> 0
F22: =D22*E22 -> 0 | H22: =D22*G22 -> 0
B23: RESULTS | C23: # of Equipment | D23: Sum Motor Power | E23: Weighted average motor efficiency | G23: Weighted average motor load | I23: Average motor operation hours
C24: =COUNT(D6:D22) -> 0 | D24: =SUM(D6:D22) -> 0 | E24: =SUM(F6:F22)/D24 ->  | G24: =SUM(H6:H22)/D24 ->  | I24: =AVERAGE(I6:I22) -> 
B26: NOTE: Let the last two lines always empty. If you need more lines, you can copy the last two lines, then select the next-to-last line and add on right click "Insert Copied Cells" field. Do not just insert rows, as there are hidden cells with formulas that won't be copied!
B28: HOW TO USE:
B29: 1. Insert data for single equipment/motors from your company in cells 2. Data for Motor Efficiency, % Full Load and Annual Operation Hours can be compiled in table "INPUT VALUES Pressure"

Sheet 3| Compressor Energy Cost
B2: COMPRESSED AIR ENERGY COST CALCULATION
B3: ISSUE: Compressed air is the most expensive form of energy, one should know that how much energy consumed by the compressor. It adds to manufacturing cost of products. WHAT WE DO HERE: Calculate compressed air cost, if one would know the cost then will think to avoid its wastage.
C4: Example | E4: ON Load Power
C5: 160 | F5: [kW] | G5: > | H5: Motor Power consumption when it is running ON Load
E6: OFF Load Power
C7: 40 | F7: [kW] | G7: > | H7: Motor Power consumption when it is running OFF Load
E8: ON load Runing hours per year
C9: 4056 | F9: [h/y] | G9: > | H9: Total time(hrs) when compessor is ON Load /year
E10: OFF load Runing hours per year
C11: 2184 | F11: [h/y] | G11: > | H11: Total time(hrs) when compessor is OFF Load /year
E12: Price of electrical Energy Unit
C13: 18 | F13: [Rs/kWh] | G13: > | H13: Average price of electricity from different means: e.g power company(WAPDA), Generatos, power plants etc
E14: Average ON Load running
C15: =C9/(C9+C11) -> 0.65 | E15: =E9/(E9+E11) ->  | F15: [%] | G15: > | H15: ON load Runing hours per year [h/y] / (ON load Runing hours per year [h/y] + OFF load Runing hours per year [h/y])
E16: Motor Efficiency
C17: 0.92 | F17: [%] | G17: > | H17: Different motors have different efficiancies varies from company to company, availiable on motor name plat data/brochure
E18: Maximum Demand Indicator (MDI) Price
C19: 400 | F19: [Rs/kW] | G19: > | H19: Maximum demand index are fix charges charged by power company (e.g WAPDA) for your electric sanction load and compresors have major share in MDI
E20: ON Load Energy cost
C21: =C5*C9*C13/C17 -> 12697043.48 | E21: =E5*E9*E13/E17 ->  | F21: [Rs/y] | G21: > | H21: ON Load Power [kW] x ON Load Running hours per year [h/y] x Price of electrical energy unit [Rs/kWh] / Motor Effeiciency at ON load [%]
E22: OFF Load Energy cost
C23: =C7*C11*C13/C17 -> 1709217.391 | E23: =E7*E11*E13/E17 ->  | F23: [Rs/y] | G23: > | H23: OFF Load Power [kW] x OFF Load Running hours per year [h/y] x Price of electrical energy unit [Rs/kWh] / Motor Effeiciency at OFF load [%]
E24: Demand Cost
C25: =C7*C19*12 -> 192000 | E25: =E7*E19*12 -> 0 | F25: [Rs/y] | G25: > | H25: Maximum demand index Rate [Rs/kW] x OFF Load Power [kW] x 12
E26: Total Annual Energy Cost
C27: =C21+C23+C25 -> 14598260.87 | E27: =E21+E23+E25 ->  | F27: [Rs/y] | G27: > | H27: ON Load Energy cost [Rs]+ OFF energy cost [Rs/y]+ Demand Cost [Rs/y]
B30: HOW TO USE:
B31: 1. Insert data from your company in cells that are highlighted in white

Sheet 4| Pressure Reduction
B2: ENERGY SAVING THROUGH PRESSURE REDUCTION
B3: ISSUE: Energy is wasted if pressure is set higher than needed. The discharge pressure set point range should be set to the minimum level needed for process air requirements. WHAT WE DO HERE: Calculat the energy savings achievable by reducing the discharge pressure.
C4: Example | E4: Motor Power
C5: 160 | E5: ='2| Equipment data'!D24 -> 0 | F5: [kW] | G5: > | H5: Sum of all compressors, cooling fans and dryer motor ratings. Data automatically retreived from "2| Equipment data"
E6: Motor Efficiency
C7: ='2| Equipment data'!E5 -> 0.92 | E7: ='2| Equipment data'!E24 ->  | F7: [%] | G7: > | H7: Weighted average combined motor efficiency (default = 90%). Data automatically retreived from "2| Equipment data"
E8: % Full Load
C9: ='2| Equipment data'!G5 -> 0.65 | E9: ='2| Equipment data'!G24 ->  | F9: [%] | G9: > | H9: Estimate of average percentage motor load factor (default = 65%). Data automatically retreived from "2| Equipment data"
E10: Annual Operation Hours
C11: ='2| Equipment data'!I5 -> 6240 | E11: ='2| Equipment data'!I24 ->  | F11: [h/y] | G11: > | H11: Data automatically retreived from "2| Equipment data"
E12: Pressure Reduction
C13: 1 | F13: [bar] | G13: > | H13: Average reduction in discharge pressure set-point
E14: Annual Energy Consumption
C15: =(C5/C7)*C9*C11 -> 705391.3043 | E15: =(E5/E7)*E9*E11 ->  | F15: [kWh/y] | G15: > | H15: = (Motor Power [kW]/ Motor Efficiency [%]) x (Full Load [%]) x (Operation Hours [h/y])
E16: % Savings
C17: =C13*0.065 -> 0.065 | E17: =E13*0.065 -> 0 | F17: [%] | G17: > | H17: = (Pressure Reduction [bar]) x (6-7% savings per bar)
E18: Annual Energy Savings
C19: =C15*C17 -> 45850.43478 | E19: =E15*E17 ->  | F19: [kWh/y] | G19: > | H19: = (Annual Energy Consumption [kWh]) x (Savings [%])
E20: Average Electricity Price
C21: 18 | F21: [Rs/kWh] | G21: > | H21: Insert from Energy Bills
E22: Annual Cost Savings
C23: =C19*C21 -> 825307.8261 | E23: =E19*E21 ->  | F23: [Rs/y] | G23: > | H23: = (Annual Energy Savings [kWh/y] x (Average Electricity Price [$/kWh])
B26: HOW TO USE:
B27: 1. Insert data from your company in cells that are highlighted in white 2. Data for Motor Efficiency, % Full Load and Annual Operation Hours can be compiled in table "INPUT VALUES Pressure" and are automatically shown as input values in this table
B28: ADDITIONAL INFORMATION & TIPS
B29: 1. Rule of Thumb: Every 1 bar pressure reduction results in 6-7% energy saving. If analysis of your equipment provide you with more accurate values for savings the formula for "% Savings" may be changed accordingly. 2. Payback depends on number of problems in the system and requirement of addtional controls (if any). Payback < 1 year possible 3. Implementation should be done carefully: Discharge pressure should be reduced in small steps (e.g. 0,25 bar) and performance of critical end users should be monitored carefully. 4. Reduce pressure until a probel arises at one consumer. Check if the problem can be fixed at the consumer site and continue. When all problems are located and repaired, raise the pressure range up by a small amount (e.g. 0,15 bar) and stop process at new optimum setting. 5. Please, be aware that a problem at end users do not only include problems of operation, but also longer processing time, e.g. as pneumatic screw driver operates slower with lower pressure. 6. If only one or two specific end users dictate the pressure of the entire system, it is often more economic to replace or modigy this component rather than operate the whole system with higher pressure. It might be a solution to seperate the consumer from the compressed air system and to operate just this user with one compressor at a higher pressure level while rest of the system operatew with lower pressure.

Sheet 5| Leakage Calculation-Offline
B2: LEAKAGE COST CALCULATION - OFFLINE METHOD
B3: ISSUE: Compressed air is the most expensive form of energy, In industry this expensive energy is wasted due to Leakages in the air distribution system and also in machines/equipments. WHAT WE DO HERE: Calculate compressed air leakage cost,Leakage test can be when Plant is OFF. Take appropriate remedies to control air leakages.
C4: Example | E4: On Load Power consumption of compressor
C5: 160 | F5: [kW] | G5: > | H5: Compressor Motor power consumption when it's running On Load
E6: Annual operation hours
C7: 6240 | F7: [h/y] | G7: > | H7: Compressor run time x working days per month x 12
E8: ON Load Time | H8: When plant is OFF, No machine/equipment is using air, Fill the reservior ensuring no branch/link is disconnected. Run only one compressor and note Compressor On load time, take 3-4 readings and average out it.
C9: 32 | F9: [sec] | G9: >
E10: OFF Load Time
C11: 18 | F11: [sec] | G11: > | H11: When plant is OFF, No machine/equipment is using air, Fill the reservior first after that note Compressor OFF load time, take 3-4 readings and average out it.
E12: On Load time per hour
C13: =C9/(C9+C11)*60 -> 38.4 | E13: =E9/(E9+E11)*60 ->  | F13: [min] | G13: > | H13: On load time/(On load time+Off load Time) x 60
E14: Leakage Allowance | H14: Ideally, leakage allowance should be Zero (0%). However, 5-10% leakage is observed in well maintained systems
C15: 0.05 | F15: [%] | G15: >
E16: Price of electrical Energy Unit
C17: 18 | F17: [Rs/kWh] | G17: > | H17: Average price of electricity from different means: e.g power company(WAPDA), Generatos, power plants etc.
E18: Leakage Cost per hour
C19: =C5*C17*C13*(1-C15)/60 -> 1751.04 | E19: =E5*E17*E13*(1-E15)/60 ->  | F19: Rs/h | G19: > | H19: On load power consumption x Price of Elecricity unit x On load time per hour ÷ 60
E20: Leakage Cost per hour
C21: =C19*C7 -> 10926489.6 | E21: =E19*E7 ->  | F21: Rs/y | G21: > | H21: Annual operation hours x leakage cost per hour
B24: HOW TO USE:
B25: 1. Insert data from your company in cells that are highlighted in white 2. Data for Motor Power, Motor Efficiency, and Annual Operation Hours can be compiled in table "Equipment Data" once and inserted from this source.

Sheet 6| Leakage Calculation-Orifice
B2: LEAKAGE COST CALCULATION - THROUGH ORIFICE SIZE
B3: ISSUE: Compressed air is the most expensive form of energy, In industry this expensive energy is wasted due to Leakages in the air distribution system and also in machines/equipments. WHAT WE DO HERE: Calculate compressed air leakage cost through orifice when you can not shut down Plant. | J3: AIR FLOW THROUGH ORIFICES
C4: Example | E4: Compressor Free air delivery | J4: Volume of free air in cubic feet of air per minute (CFM) that will flow through round holes from a receiver into the atmosphere. CFM is measured at absolute pressure of 14.7psi and 70¼ F.
C5: 900 | F5: [cfm] | G5: > | H5: Enter Actual discharge rate from flow meter or enter rated capacity of discharge ,from compressor name plate data | J5: Pressure | K5: [psi] | L5: 15 | M5: 20 | N5: 25 | O5: 30 | P5: 35 | Q5: 40 | R5: 45 | S5: 50 | T5: 60 | U5: 70 | V5: 80 | W5: 90 | X5: 100 | Y5: 125 | Z5: 150 | AA5: 200
E6: On Load Power consumption of compressor | K6: [bar] | L6: =L5*0.0689475729 -> 1.034213594 | M6: 1.378951458 | N6: 1.723689323 | O6: 2.068427187 | P6: 2.413165052 | Q6: 2.757902916 | R6: 3.102640781 | S6: 3.447378645 | T6: 4.136854374 | U6: 4.826330103 | V6: 5.515805832 | W6: 6.205281561 | X6: 6.89475729 | Y6: 8.618446612 | Z6: 10.34213593 | AA6: =AA5*0.0689475729 -> 13.78951458
C7: 160 | F7: [kW] | G7: > | H7: Compressor motor rating,from compressor name plate data | J7: Dia of orifice | L7: 3 | M7: 4 | N7: 5 | O7: 6 | P7: 7 | Q7: 8 | R7: 9 | S7: 10 | T7: 11 | U7: 12 | V7: 13 | W7: 14 | X7: 15 | Y7: 16 | Z7: 17 | AA7: 18
E8: Price of electrical Energy Unit | J8: [inch] | K8: [mm]
C9: 18 | F9: [Rs/KWh] | G9: > | H9: Average price of electricity from different means: e.g power company(WAPDA), Generatos, power plants etc | J9: 0.015625 | K9: =CONVERT(J9,"in","mm") -> 0.396875 | L9: 0.105 | M9: 0.123 | N9: 0.14 | O9: 0.158 | P9: 0.176 | Q9: 0.194 | R9: 0.211 | S9: 0.29 | T9: 0.267 | U9: 0.3 | V9: 0.335 | W9: 0.37 | X9: 0.406 | Y9: 0.494 | Z9: 0.583 | AA9: 0.75
E10: Cost of compressed air produced | J10: 0.03125 | K10: =CONVERT(J10,"in","mm") -> 0.79375 | L10: 0.42 | M10: 0.491 | N10: 0.562 | O10: 0.633 | P10: 0.703 | Q10: 0.774 | R10: 0.845 | S10: 0.916 | T10: 1.06 | U10: 1.2 | V10: 1.34 | W10: 1.48 | X10: 1.62 | Y10: 1.98 | Z10: 2.32 | AA10: 3.18
C11: =C7*C9/(C5*60) -> 0.05333333333 | E11: =E7*E9/(E5*60) ->  | F11: [Rs/ftᶟ] | G11: > | H11: Full Load Power Consumption /Compressor Free Air Delivery * Price of Electrical Energy unit | J11: 0.046875 | K11: =CONVERT(J11,"in","mm") -> 1.190625 | L11: 0.944 | M11: 1.1 | N11: 1.26 | O11: 1.42 | P11: 1.58 | Q11: 1.75 | R11: 1.91 | S11: 2.06 | T11: 2.38 | U11: 2.7 | V11: 3 | W11: 3.33 | X11: 3.66 | Y11: 4.44 | Z11: 5.25 | AA11: 6.86
E12: Line pressure | J12: 0.0625 | K12: 1.5875 | L12: 1.68 | M12: 1.96 | N12: 2.25 | O12: 2.53 | P12: 2.81 | Q12: 3.1 | R12: 3.38 | S12: 3.66 | T12: 4.23 | U12: 4.79 | V12: 5.36 | W12: 5.92 | X12: 6.49 | Y12: 7.9 | Z12: 9.1 | AA12: 12.17
C13: 30 | F13: [psi] | G13: > | H13: Pressure in line where leakage available. Select appropriate unit from drop-down. Unit of example data is [psi]. | J13: 0.09375 | K13: 2.38125 | L13: 3.78 | M13: 4.41 | N13: 5.05 | O13: 5.69 | P13: 6.31 | Q13: 7 | R13: 7.63 | S13: 8.25 | T13: 9.5 | U13: 10.8 | V13: 12 | W13: 13.3 | X13: 14.6 | Y13: 17.8 | Z13: 20.9 | AA13: 27.35
E14: Orifice dia | J14: 0.125 | K14: 3.175 | L14: 6.72 | M14: 7.86 | N14: 8.98 | O14: 10.1 | P14: 11.3 | Q14: 12.4 | R14: 13.5 | S14: 14.7 | T14: 16.9 | U14: 19.2 | V14: 21.4 | W14: 23.7 | X14: 26 | Y14: 31.6 | Z14: 37.3 | AA14: 48.7
C15: 0.125 | F15: [In] | G15: > | H15: Select Approximate diameter of One orifice in inches from drop-down in the cell | J15: 0.1875 | K15: 4.7625 | L15: 15.2 | M15: 17.65 | N15: 20.2 | O15: 22.8 | P15: 25.2 | Q15: 28 | R15: 30.5 | S15: 33 | T15: 38 | U15: 43.2 | V15: 48.3 | W15: 53.2 | X15: 58.5 | Y15: 71 | Z15: 84 | AA15: 109.6
E16: Orifice type | J16: 0.25 | K16: 6.35 | L16: 26.9 | M16: 31.4 | N16: 35.9 | O16: 40.5 | P16: 45 | Q16: 49.6 | R16: 54.1 | S16: 58.6 | T16: 67.6 | U16: 76.7 | V16: 85.7 | W16: 94.8 | X16: 104 | Y16: 126 | Z16: 149.3 | AA16: 195
C17: Sharp Edged | F17: [In] | G17: > | H17: Select type of orifice from drop-down in the cell | J17: 0.375 | K17: 9.525 | L17: 60.5 | M17: 70.7 | N17: 80.9 | O17: 91.1 | P17: 101 | Q17: 112 | R17: 122 | S17: 132 | T17: 152 | U17: 173 | V17: 193 | W17: 213 | X17: 234 | Y17: 284 | Z17: 336 | AA17: 438
E18: Leakage through one orifice | J18: 0.5 | K18: 12.7 | L18: 108 | M18: 126 | N18: 144 | O18: 162 | P18: 180 | Q18: 198 | R18: 216 | S18: 235 | T18: 271 | U18: 307 | V18: 343 | W18: 379 | X18: 415 | Y18: 506 | Z18: 596 | AA18: 777
C19: =IF(C17="Sharp Edged", 0.65*(VLOOKUP(C15,J9:AA28,(IF(F13="[psi]", HLOOKUP(C13,L5:AA7,3,TRUE),HLOOKUP(C13,L6:AA7,2,TRUE))),FALSE)), 0.97*(VLOOKUP(C15,J9:AA28,(IF(F13="[psi]", HLOOKUP(C13,L5:AA7,3,TRUE),HLOOKUP(C13,L6:AA7,2,TRUE))),FALSE))) -> 6.565 | E19: =IF(E17="Sharp Edged", 0.65*(VLOOKUP(E15,J9:AA28,(IF(F13="[psi]", HLOOKUP(E13,L5:AA7,3,TRUE),HLOOKUP(E13,L6:AA7,2,TRUE))),FALSE)), 0.97*(VLOOKUP(E15,J9:AA28,(IF(F13="[psi]", HLOOKUP(E13,L5:AA7,3,TRUE),HLOOKUP(E13,L6:AA7,2,TRUE))),FALSE))) ->  | F19: [cfm] | G19: > | H19: Automatically retrieved from table"AIR FLOW THROUGH ORIFICES". Multiplied by flow factor 0.97 for Well Rounded and 0.65 for Sharp Edged orifices | J19: 0.625 | K19: 15.875 | L19: 168 | M19: 196 | N19: 225 | O19: 253 | P19: 281 | Q19: 310 | R19: 338 | S19: 366 | T19: 423 | U19: 479 | V19: 536 | W19: 592 | X19: 649 | Y19: 790 | Z19: 932 | AA19: 1216
E20: Energy cost due to leakages per hour | J20: 0.75 | K20: 19.05 | L20: 242 | M20: 283 | N20: 323 | O20: 365 | P20: 405 | Q20: 446 | R20: 487 | S20: 528 | T20: 609 | U20: 690 | V20: 771 | W20: 853 | X20: 934 | Y20: 1138 | Z20: 1340 | AA20: 1750
C21: =C11*C19*60 -> 21.008 | E21: =E11*E19*60 ->  | F21: [Rs/h] | G21: > | H21: Cost of Compressed air produced x Leakage through orifice | J21: 0.875 | K21: 22.225 | L21: 329 | M21: 385 | N21: 440 | O21: 496 | P21: 551 | Q21: 607 | R21: 662 | S21: 718 | T21: 828 | U21: 939 | V21: 1050 | W21: 1161 | X21: 1272 | Y21: 1549 | Z21: 1825 | AA21: 2382
E22: Annual operation hours | J22: 1 | K22: 25.4 | L22: 430 | M22: 503 | N22: 575 | O22: 648 | P22: 720 | Q22: 793 | R22: 865 | S22: 938 | T22: 1082 | U22: 1227 | V22: 1371 | W22: 1516 | X22: 1661 | Y22: 2023 | Z22: 2385 | AA22: 3112
C23: 6240 | F23: [h/y] | G23: > | H23: 24h/7d =8,760 hours; 24h/5d =6,240 hours; h/5d = 2,080 hours | J23: =1+1/8 -> 1.125 | K23: 28.575 | L23: 544 | M23: 637 | N23: 727 | O23: 820 | P23: 910 | Q23: 1004 | R23: 1094 | S23: 1187 | T23: 1370 | U23: 1552 | V23: 1734 | W23: 1918 | X23: 2101 | Y23: 2560 | Z23: 3020 | AA23: 3940
E24: Leakage Cost Per year | J24: =1+1/4 -> 1.25 | K24: 31.75 | L24: 672 | M24: 784 | N24: 900 | O24: 1019 | P24: 1124 | Q24: 1240 | R24: 1352 | S24: 1464 | T24: 1693 | U24: 1917 | V24: 2144 | W24: 2370 | X24: 2596 | Y24: 3160 | Z24: 3725 | AA24: 4860
C25: =C21*C23 -> 131089.92 | E25: =E21*E23 ->  | F25: Rs/y | G25: > | H25: Annual operation hours x leakage cost per hour | J25: =1+3/8 -> 1.375 | K25: 34.925 | L25: 816 | M25: 954 | N25: 1091 | O25: 1230 | P25: 1367 | Q25: 1505 | R25: 1643 | S25: 1780 | T25: 2054 | U25: 2330 | V25: 2607 | W25: 2880 | X25: 3153 | Y25: 3840 | Z25: 4525 | AA25: 5910
J26: =1+1/2 -> 1.5 | K26: 38.1 | L26: 968 | M26: 1132 | N26: 1293 | O26: 1460 | P26: 1620 | Q26: 1783 | R26: 1946 | S26: 2112 | T26: 2335 | U26: 2760 | V26: 3081 | W26: 3412 | X26: 3734 | Y26: 4550 | Z26: 5360 | AA26: 7000
J27: =1+3/4 -> 1.75 | K27: 44.45 | L27: 1318 | M27: 1540 | N27: 1760 | O27: 1985 | P27: 2205 | Q27: 2429 | R27: 2650 | S27: 2875 | T27: 3310 | U27: 3755 | V27: 4200 | W27: 4645 | X27: 5085 | Y27: 6195 | Z27: 7300 | AA27: 9530
B28: HOW TO USE: | J28: 2 | K28: 50.8 | L28: 1720 | M28: 2120 | N28: 2300 | O28: 2594 | P28: 2880 | Q28: 3173 | R28: 3460 | S28: 3752 | T28: 4330 | U28: 4915 | V28: 5480 | W28: 6070 | X28: 6650 | Y28: 8100 | Z28: 9540 | AA28: 12450
B29: 1. Insert data from your company in cells that are highlighted in white 2. Data for Motor Power, Motor Efficiency, and Annual Operation Hours can be compiled in table "Equipment Data" once and inserted from this source.

Sheet 7| High Efficiency Motor
B2: ENERGY SAVING BY INSTALLING HIGH EFFICIENCY MOTOR
B3: ISSUE: Compressors usually do not come with high efficiency motors as standard, however, they are often offered as options. For compressors with long annual running hours a high efficiency motor may be more economical. WHAT WE DO HERE: Calculate the energy savings achievable by using a high efficienc motor instead of a standard motor.
C4: Example | E4: Motor Power
C5: 160 | F5: [kW] | G5: > | H5: Compressor motor rating
E6: Motor Efficiency
C7: 0.92 | F7: [%] | G7: > | H7: Standard compressor motor efficiency (default =92%)
E8: % Full Load
C9: 0.65 | F9: [%] | G9: > | H9: Estimate of average percentage motor load factor (default =65%)
E10: Annual Operation Hours
C11: 6240 | F11: [h/y] | G11: > | H11: 24h/7d =8.760 hours; 24h/5d =6.240 hours; h/5d = 2.080 hours
E12: New Motor Efficiency
C13: 0.935 | F13: [%] | G13: > | H13: = Efficiency new motor [%]-Efficiency old standard compressor motor [%] (default = 1,5% higher than old motor)
E14: Energy Savings
C15: =C5*C9*C11*((1/C7)-(1/C13)) -> 11316.43804 | E15: =E5*E9*E11*((1/E7)-(1/E13)) ->  | F15: [kWh/y] | G15: > | H15: = (Motor Power [kW] x (Full Load [%]) x Operation Hours [h/y]) x (1/Compressor Motor Efficiency [%] - 1/New Motor Efficiency [%])
E16: Average Electricity Price
C17: 18 | F17: [Rs/kWh] | G17: > | H17: Insert from Energy Bills
E18: Annual Cost Savings
C19: =C15*C17 -> 203695.8847 | E19: =E15*E17 ->  | F19: [$/y] | G19: > | H19: = (Annual Energy Savings [kWh/y] x (Average Electricity Price [$/kWh])
B22: HOW TO USE:
B23: 1. Insert data from your company in cells that are highlighted in white 2. Data for Motor Power, Motor Efficiency, % Full Load and Annual Operation Hours can be compiled in table "Equipment Data" once and inserted from this source.
B24: ADDITIONAL INFORMATION & TIPS
B25: 1. Rule of Thumb: a high efficiency motor will typically be 1,5% more efficient than a standard compressor motor. Please, insert exact value if available from supplier. 2. Payback: Base load machines that operate more hours annually show quicker returns on investment than trim machines that only operate few hours to cover peak demand. 3. Compressors usually do not come with high efficiency motors as standard, however, motors with higher efficiency are often offered as option. For compressors for base load a high efficiency motor may be more economical.

Sheet 8| Multi-stage compressor
B2: ENERGY SAVING BY USING MULTIPLE-STAGE COMPRESSOR
B3: ISSUE: Multiple-stage compressors are normally more efficient than single- or two stage machines. Reason: When pressure is generated over several steps the air can be cooled inbetween, thereby reducing volume and work required to compress the air. WHAT WE DO HERE: Calculate the energy savings achievable by using a multiple stage compressor instead of a single stage compressor.
C4: Example | E4: Motor Power
C5: 160 | F5: [kW] | G5: > | H5: Compressor motor rating
E6: Motor Efficiency
C7: 0.92 | F7: [%] | G7: > | H7: Standard compressor motor efficiency (default =92%)
E8: % Full Load
C9: 0.65 | F9: [%] | G9: > | H9: Estimate of average percentage motor load factor (default =65%)
E10: Annual Operation Hours
C11: 6240 | F11: [h/y] | G11: > | H11: 24h/7d =8.760 hours; 24h/5d =6.240 hours; h/5d = 2.080 hours
E12: % Savings over Single-stage
C13: 0.13 | F13: [%] | G13: > | H13: default: 6% for Reciprocating Compressor, 13% for Rotary Screw Compressor
E14: Energy Savings
C15: =C5/C7*C9*C11*C13 -> 91700.86957 | E15: =E5/E7*E9*E11*E13 ->  | F15: [kWh/y] | G15: > | H15: = (Motor Power [kW] x (Full Load [%]) x Operation Hours [h/y]) x (1/Compressor Motor Efficiency [%] - 1/New Motor Efficiency [%])
E16: Average Electricity Price
C17: 18 | F17: [Rs/kWh] | G17: > | H17: Insert from Energy Bills
E18: Annual Cost Savings
C19: =C15*C17 -> 1650615.652 | E19: =E15*E17 ->  | F19: [Rs/y] | G19: > | H19: = (Annual Energy Savings [kWh/y] x (Average Electricity Price [$/kWh])
B22: HOW TO USE:
B23: 1. Insert data from your company in cells that are highlighted in white 2. Data for Motor Power, Motor Efficiency, % Full Load and Annual Operation Hours can be compiled in table "Equipment Data" once and inserted from this source.
B24: ADDITIONAL INFORMATION & TIPS
B25: 1. Rule of Thumb: Two-stage reciprocating compressors are 6% more efficient than single-stage reciprocating compressors. Two-stage rotary screw-compressors are 13% more efficient than single-stage versions. 2. Payback: The premium paid for equal power, two-stage machines will be 30 to 40%. However, the two-stage machine will have more capacity (l/s) than the same power, single-stage machine. Therefore sometimes a smaller power two-stage machine can be used instead of the larger power single-stage machine for the same job, resulting in an effective cost premium of less than 30% . Payback highly depends on operating hours. 3. Rotary Screw Compressors are the most common compressors used in industry today and do have many inherent advantages over reciprocating compressors including a lower capital cost; lower maintenance costs; smaller size and reduced vibration and noise. Two stage rotary screw compressors may not be available for sizes smaller than ~75 kW. 4. Reciprocating compressors were historically the most commonly used compressors. However, the higher capital and maintenance costs have reduced their market dominance in recent years. Despite this, it is generally accepted that multi-stage version of these units are the most efficient compressor type. 5. Centrifugal compressors are generally only suitable for high volume applications with little variance in the demand load. These compact units are available in two, three and four stage compression technology. Generally centrifugal compressors are three stage units – which tend to be more efficient than rotary screw compressors – with inherent efficiencies approaching those of double-acting reciprocating compressors.

Sheet 9| Variable Speed Drive
B2: ENERGY SAVING BY INSTALLING VARIABLE SPEED DRIVE
B3: ISSUE: Traditionally, one or more compressors provide the base load and one compressor the peak load. Airflow is typically controlled by a valve. This method results in a higher discharge pressure, lower part load efficiencies and increased overall power consumption. VSD motors are interesting for facilities with high variance in demand profile. WHAT WE DO HERE: Calculate the energy savings achievable by using a Variable Speed Drive (VSD) instead of inlet modulation control.
C4: Example | E4: Motor Power
C5: 160 | F5: [kW] | G5: > | H5: Compressor motor rating
E6: Motor Efficiency
C7: 0.92 | F7: [%] | G7: > | H7: Standard compressor motor efficiency (default =92%)
E8: VSD Efficiency
C9: 0.96 | F9: [%] | G9: > | H9: Variable Speed Drive efficiency (default = 96%)
E10: Average Part Load Condition
C11: 0.65 | F11: [%] | G11: > | H11: Average compressor loading expressed as a percentage of the rated capacity (l/s or CFM)
E12: Annual Operation Hour
C13: 6240 | F13: [h/y] | G13: > | H13: 24h/7d =8.760 hours; 24h/5d =6.240 hours; h/5d = 2.080 hours
E14: Average Power Saving
C15: =C5/C7*70%*(100%-C11)*C9 -> 40.90434783 | E15: =E5/E7*70%*(100%-E11)*E9 ->  | F15: [kW] | G15: > | H15: = Motor Power [kW]/Motor Efficiency [%] x 70% x (100%-Average Part Load Condition [%]) X VSD Efficiency [%]
E16: Annual Energy Savings
C17: =C15*C13 -> 255243.1304 | E17: =E15*E13 ->  | F17: [kWh/y] | G17: > | H17: = Average Power Saving [kW] x Annual Operation Hours [h/y]
E18: Average Electricity Price
C19: 18 | F19: [Rs/kWh] | G19: > | H19: Insert from Energy Bills
E20: Annual Cost Savings
C21: =C17*C19 -> 4594376.348 | E21: =E17*E19 ->  | F21: [Rs/y] | G21: > | H21: = (Annual Energy Savings [kWh/y] x (Average Electricity Price [$/kWh])
B24: HOW TO USE:
B25: 1. Insert data from your company in cells that are highlighted in white 2. Data for Motor Power, Motor Efficiency, and Annual Operation Hours can be compiled in table "Equipment Data" once and inserted from this source.
B26: ADDITIONAL INFORMATION & TIPS
B27: 1. Rule of Thumb: Use of VSD compressor control instead of inlet variation control can be expressed approximately by: Power Savings = 70% (100%-% Rated Flow)

Sheet 10| Waste Heat
B2: RECUPERATION OF WASTE HEAT FROM COMPRESSOR
B3: ISSUE: Compressed air is the most expensive form of energy as over 90% of electrical energy is wasted, mainly as heat, while only around 5% is converted into compressed air. WHAT WE DO HERE: Calculate the thermal energy that can be recovered from the compressor and used for heating in other processes.
C4: Example | E4: Motor Power
C5: 160 | F5: [kW] | G5: > | H5: Compressor motor rating
E6: Recoverable heat from compressor
C7: 0.85 | F7: [%] | G7: > | H7: Recovery efficiency; default = 80-90% for air-cooled packaged rotary screw compressors; default = 50-60% for water-cooled compressors
E8: Annual Operation Hour
C9: 6240 | F9: [h/y] | G9: > | H9: 24h/7d =8.760 hours; 24h/5d =6.240 hours; h/5d = 2.080 hours
E10: % Full Load
C11: 0.65 | F11: [%] | G11: > | H11: Estimate of average percentage motor load factor (default =65%)
E12: % Hours in which waste heat can be used
C13: 0.86 | F13: [%] | G13: > | H13: = Operating hours in which heat is used while compressor is operating / operating hours compressor
E14: Primary heater efficiency
C15: 0.85 | F15: [%] | G15: > | H15: default = 85% for gas or oil heating
E16: Recoverable heat from compressor
C17: =C5*C7 -> 136 | E17: =E5*E7 -> 0 | F17: [kW] | G17: > | H17: = Motor Power [kW] x Recoverable heat from compressor [%]
E18: Annual operation hours of compressor with full load
C19: =C9*C11 -> 4056 | E19: =E9*E11 -> 0 | F19: [h/y] | G19: > | H19: = Annual Operation Hours [h/y] x Full Load [%]
E20: Useable amount of waste heat from compressor
C21: =C17*C19*C13 -> 474389.76 | E21: =E17*E19*E13 -> 0 | F21: [kWh/y] | G21: > | H21: = Recoverable heat from compressor [kW] x Annual Operation Hours with full load [h/y] x Hours in which waste heat can be used [%]
E24: Fuel Mix Used for Primary Heater
E26: Natural Gas
C27: 0.25 | F27: [%] | G27: > | H27: =%age of time the Primary Heater runs on this fuel
E28: Furnace Oil
C29: 0.5 | F29: [%] | G29: > | H29: =%age of time the Primary Heater runs on this fuel
E30: Electricity
C31: 0.1 | F31: [%] | G31: > | H31: =%age of time the Primary Heater runs on this fuel
E32: LPG
C33: 0.05 | F33: [%] | G33: > | H33: =%age of time the Primary Heater runs on this fuel
E34: Coal
C35: 0.1 | F35: [%] | G35: > | H35: =%age of time the Primary Heater runs on this fuel
E37: =IF(SUM(E27:E35)>0%,(IF(SUM(E27:E35)=100%,"","Total Mix is not 100%")), "") -> 
E38: Fuel Unit Purchase Price
E40: Natural Gas
C41: 400 | F41: [PKR/mmBtu] | G41: > | H41: Enter unit price from Utility Bill
E42: Furnace Oil
C43: 100 | F43: [PKR/Liter] | G43: > | H43: Enter unit price from purchase invoice
E44: Electricity
C45: 18 | F45: [PKR/kWh] | G45: > | H45: Enter unit price from Utility Bill
E46: LPG
C47: 150 | F47: [PKR/kg] | G47: > | H47: Enter unit price from purchase invoice
E48: Coal
C49: 5 | F49: [PKR/kg] | G49: > | H49: Enter unit price from purchase invoice
E52: Total Quantity of Fuel Saved
C53: =C55+C57+C59+C61+C63 -> 558105.6 | E53: =E55+E57+E59+E61+E63 ->  | F53: [kWhHoTotal/y] | G53: > | H53: Total kWh equivalent Fuel Saving
E54: Natural Gas
C55: =C$21/C$15*C27 -> 139526.4 | E55: =E$21/E$15*E27 ->  | F55: [kWhHo/y] | G55: > | H55: Share of Natural Gas in total savings
E56: Furnace Oil
C57: =C$21/C$15*C29 -> 279052.8 | E57: =E$21/E$15*E29 ->  | F57: [kWhHo/y] | G57: > | H57: Share of Furnace Oil in total savings
E58: Electricity
C59: =C$21/C$15*C31 -> 55810.56 | E59: =E$21/E$15*E31 ->  | F59: [kWhHo/y] | G59: > | H59: Share of Grid Electricity in total savings
E60: LPG
C61: =C$21/C$15*C33 -> 27905.28 | E61: =E$21/E$15*E33 ->  | F61: [kWhHo/y] | G61: > | H61: Share of LPG in total savings
E62: Coal
C63: =C$21/C$15*C35 -> 55810.56 | E63: =E$21/E$15*E35 ->  | F63: [kWhHo/y] | G63: > | H63: Share of Coal in total savings
E65: Total Quantity of Fuel Saved
E67: Natural Gas
C68: =C55/((1055.1/36)*10) -> 476.0639181 | E68: =E55/((1055.1/36)*10) ->  | F68: [mmBru/y] | G68: > | H68: = [Natural Gas kWhHo/y]/[(1055.1/36)*10]
E69: Furnace Oil
C70: =C57*1165.34/11630 -> 27961.42648 | E70: =E57*1165.34/11630 ->  | F70: [Liter/y] | G70: > | H70: [10.786 kWhHo per 1 Liter Furnace Oil]
E71: Electricity
C72: =C59 -> 55810.56 | E72: =E59 ->  | F72: [kWh/y] | G72: >
E73: LPG
C74: =C61/13 -> 2146.56 | E74: =E61/13 ->  | F74: [Toe/Tonne] | G74: > | H74: [13 kWhHo per 1 kg LPG]
E75: Coal Calorific Value
C76: 0.44 | E76: 0.444 | F76: [kg/y] | G76: > | H76: Select calorific value from drop-down in the cell
E77: Coal
C78: =C63*1000/(11630*$C$76) -> 10906.46447 | E78: =E63*1000/(11630*$E$76) ->  | F78: [kg/y] | G78: > | H78: = [1000 x Coal kWhHo/y] / [11630*(Calorific Value of Coal)]
E79: Annual Cost Savings
C80: =C68*C41+C70*C43+C72*C45+C74*C47+C78*C49 -> 4367674.618 | E80: =E68*E41+E70*E43+E72*E45+E74*E47+E78*E49 ->  | F80: [PKR/y] | G80: >
B83: HOW TO USE:
B84: 1. Insert data from your company in cells that are highlighted in white 2. Data for Motor Power, Motor Efficiency, and Annual Operation Hours can be compiled in table "Equipment Data" once and inserted from this source.
B85: ADDITIONAL INFORMATION & TIPS
B86: 1. Rule of Thumb: Use of VSD compressor control instead of inlet variation control can be expressed approximately by: Power Savings = 70% (100%-% Rated Flow)

Sheet Tabelle3 (hidden)
A2: Level
A3: 1
A4: 2
A5: 3
A6: 4
A7: 5

Sheet Calor Val (hidden)
B3: Net Calorific Values - Coal
C4: toe/tonne
B5: USA | C5: 0.646
B6: India | C6: 0.477
B7: South Africa | C7: 0.535
B8: Australia | C8: 0.592
B9: Russia | C9: 0.444
B10: Poland | C10: 0.57
B11: Kazakhstan | C11: 0.444
B12: Ukraine | C12: 0.516
B13: Germany | C13: 0.588
B14: Others

Sheet dropdown (hidden)
B2: [psi] | C2: Sharp Edged
B3: [bar] | C3: Well Rounded
